fUST/lending_fUST_20240716
["ID","MTS","AMOUNT","RATE_DAILY","PERIOD"]
[332364956,1721130638511,-225.27740875,0.00020841,2]
[332364958,1721130638522,-500.0,0.00020841,2]
[332364960,1721130638532,-184.03299105,0.00020841,2]
[332364962,1721130638543,-6876.61298454,0.00020842,2]
[332364964,1721130638553,-764.86209876,0.00020842,2]
[332364966,1721130638563,-226.02684754,0.00020842,2]
[332364968,1721130638572,-428.86667829,0.00020842,2]
[332364970,1721130638582,-11449.79563323,0.00020842,2]
[332364972,1721130638592,-119157.16371223,0.00020842,2]
[332364974,1721130638602,-4892.16826804,0.00020932,2]
[332364976,1721130638612,-300.30391715,0.00021,3]
[332364978,1721130638623,-248.1002,0.00021,2]
[332364980,1721130638632,-2355.81270014,0.00021036,2]
[332364982,1721130638642,-163.5,0.00021049,2]
[332364984,1721130638651,-150.0,0.00021079,2]
[332364986,1721130638662,-8091.56995077,0.00021084,3]
[332364988,1721130638673,-285.0,0.00021095,2]
[332364990,1721130638683,-299.58099341,0.00021095,2]
[332364993,1721130638701,-154.77711953,0.00021095,4]
[332364996,1721130638719,-483.684322,0.00021096,2]
[332364999,1721130638735,-621.79312102,0.00021256,2]
[332365002,1721130638751,-1285.23249844,0.00021268,2]
[332365011,1721130638832,-3606.9357696,0.00021268,2]
[332365013,1721130638846,-2355.81270014,0.00021289,2]
[332365015,1721130638860,-213.254361,0.00021296,2]
[332365018,1721130638875,-246.112373,0.00021296,2]
[332365021,1721130638892,-163.5,0.00021298,2]
[332365023,1721130638908,-151.50895514,0.00021354,2]
[332365026,1721130638925,-1640.41838588,0.00021541,2]
[332365184,1721130640565,-715.39431426,0.00021541,2]
[332365186,1721130640579,-163.5,0.00021546,2]
[332365189,1721130640592,-4892.16826808,0.00021571,2]
[332365191,1721130640606,-253.6279002,0.00021697,2]
[332365194,1721130640619,-2000.0,0.00021707,2]
[332365196,1721130640635,-300.0,0.00021724,2]
[332365200,1721130640662,-150.65349696,0.00021743,7]
[332365204,1721130640688,-2355.81270014,0.00021793,2]
[332365207,1721130640710,-163.5,0.00021795,2]
[332365210,1721130640729,-151.0,0.00021795,2]
[332365213,1721130640747,-175.26339623,0.00021796,2]
[332365216,1721130640762,-500.0,0.00021796,2]
[332365218,1721130640778,-619.87801888,0.00021796,2]
[332365221,1721130640793,-500.0,0.00021796,2]
[332365223,1721130640810,-500.0,0.00021796,2]
[332365226,1721130640822,-500.0,0.00021796,2]
[332365228,1721130640832,-600.02825112,0.00021796,2]
[332365230,1721130640842,-16183.1399015,0.00021797,3]
[332365232,1721130640851,-150.112233,0.000218,5]
[332365234,1721130640862,-150.112233,0.000218,4]
[332365250,1721130641026,-1010.87356778,0.00021846,2]
[332365253,1721130641049,-300.0,0.00021869,2]
[332365255,1721130641060,-8091.56995077,0.00021873,3]
[332365257,1721130641071,-24274.7098523,0.00021883,3]
[332365259,1721130641081,-300.0,0.00021883,2]
[332365261,1721130641092,-8091.56995077,0.0002189,3]
[332365263,1721130641101,-8037.49821751,0.00021893,5]
[332365264,1721130641111,-141780.3641353,0.00021893,2]
[332365318,1721130643298,-226.02684754,0.00020882,2]
[332365319,1721130643309,-9344.97794346,0.00021893,2]
[332365341,1721130646188,-783.93427313,0.00021893,2]
[332365342,1721130646200,-151.0,0.00021893,2]
[332365343,1721130646210,-151.0,0.00021893,2]
[332365344,1721130646220,-243.248042,0.00021893,2]
[332365345,1721130646229,-151.0,0.00021893,2]
[332365346,1721130646239,-458.162404,0.00021893,2]
[332365347,1721130646248,-458.162404,0.00021893,2]
[332365348,1721130646259,-151.0,0.00021893,2]
[332365349,1721130646268,-153.913507,0.00021893,2]
[332365350,1721130646278,-150.0,0.00021893,2]
[332365351,1721130646288,-210.0,0.00021893,2]
[332365352,1721130646298,-225.0,0.00021893,2]
[332365353,1721130646308,-4928.98038438,0.00021897,3]
[332365354,1721130646320,-1438.1,0.00021897,3]
[332365358,1721131010200,150.63846768,0.00021684,30]
[332365359,1721131010278,150.63846768,0.0002125,120]
[332365361,1721131358525,150.63846768,0.00021788,30]
[332365362,1721131358608,150.63846768,0.00021352,120]
[332365364,1721131645153,-324.7682757,0.00019688,2]
[332365365,1721131645175,-350.91551271,0.00019748,2]
[332365366,1721131645198,-7299.5339157,0.00019983,2]
[332365367,1721131645219,-350.91551271,0.00020061,2]
[332365368,1721131645240,-462.6088505,0.00020226,2]
[332365369,1721131645262,-350.91551271,0.00020323,2]
[332365370,1721131645283,-160.0,0.00020408,3]
[332365371,1721131645305,-350.91551271,0.00020657,2]
[332365372,1721131645327,-160.0,0.00020905,4]
[332365373,1721131645348,-350.91551271,0.00020919,2]
[332365374,1721131645369,-299.58099341,0.00021095,2]
[332365375,1721131645390,-280.18150301,0.00021095,2]
[332365376,1721131645412,-215.56313503,0.00021095,2]
[332365377,1721131645438,-459.500105,0.00021096,2]
[332365378,1721131645459,-350.91551271,0.00021114,2]
[332365379,1721131645480,-428.86667829,0.00021352,2]
[332365380,1721131645503,-6876.61298454,0.00021352,2]
[332365381,1721131645527,-764.86209876,0.00021352,2]
[332365382,1721131645548,-225.9074323,0.00021352,2]
[332365383,1721131645569,-160.0,0.00021402,5]
[332365384,1721131645591,-350.91551273,0.00021429,2]
[332365385,1721131645616,-1734.42805018,0.0002173,2]
[332365386,1721131645637,-534.87674077,0.00021751,2]
[332365387,1721131645660,-3727.43095617,0.00021773,3]
[332365388,1721131645682,-2000.0,0.00021817,2]
[332365389,1721131645706,-79282.35525583,0.00021817,3]
[332365392,1721131759608,150.65349696,0.00022469,30]
[332365393,1721131759665,150.65349696,0.0002202,120]
[332366037,1721131838397,-156.22955595,0.00021095,2]
[332366039,1721131838407,-436.525099,0.00021096,2]
[332366041,1721131838419,-1517.62454389,0.0002181,2]
[332366043,1721131838429,-1387.89893717,0.00021817,3]
[332366046,1721131838443,-300.0,0.0002183,2]
[332366048,1721131838452,-1407.0,0.00021898,2]
[332366050,1721131838464,-160.0,0.00021899,6]
[332366052,1721131838475,-374.0,0.000219,2]
[332366054,1721131838484,-150.112233,0.000219,4]
[332366056,1721131838499,-150.112233,0.000219,4]
[332366058,1721131838509,-150.112233,0.000219,2]
[332366059,1721131838519,-150.112233,0.000219,5]
[332366061,1721131838529,-3000.0,0.000219,2]
[332366063,1721131838539,-150.0,0.00021907,2]
[332366065,1721131838549,-150.0,0.00021907,2]
[332366067,1721131838559,-150.0,0.00021907,2]
[332366069,1721131838569,-504.0,0.00021907,2]
[332366071,1721131838582,-42492.7129003,0.00021907,3]
[332366072,1721131838592,-3000.0,0.0002191,2]
[332366073,1721131838602,-433.91461321,0.00021916,2]
[332366074,1721131838612,-500.0,0.00021916,2]
[332366075,1721131838625,-500.0,0.00021916,2]
[332366076,1721131838635,-500.0,0.00021916,2]
[332366077,1721131838644,-320.01977578,0.00021916,2]
[332366078,1721131838654,-3447.56187803,0.00021917,5]
[332366079,1721131838664,-2325.65471467,0.00021917,5]
[332366334,1721131843478,-1693.09439408,0.00021917,5]
[332366335,1721131843488,-500.0,0.00021917,2]
[332366336,1721131843501,-500.0,0.00021917,2]
[332366337,1721131843512,-205.82684542,0.00021917,2]
[332366338,1721131843522,-500.0,0.00021917,2]
[332366339,1721131843533,-508.01061373,0.00021917,2]
[332366340,1721131843544,-245.39606204,0.00021917,2]
[332366341,1721131843554,-500.0,0.00021917,2]
[332366342,1721131843564,-500.0,0.00021917,2]
[332366343,1721131843577,-500.0,0.00021917,4]
[332366344,1721131843587,-500.0,0.00021917,2]
[332366345,1721131843598,-500.0,0.00021917,2]
[332366346,1721131843609,-507.25596057,0.00021917,2]
[332366347,1721131843619,-500.0,0.00021917,2]
[332366348,1721131843630,-500.0,0.00021917,2]
[332366349,1721131843640,-500.0,0.00021917,2]
[332366350,1721131843650,-334.71951592,0.00021917,2]
[332366351,1721131843661,-350.6745517,0.00021917,2]
[332366352,1721131843675,-149.3254483,0.00021917,2]
[332366353,1721131843685,-500.0,0.00021917,2]
[332366354,1721131843696,-518.77490921,0.00021917,2]
[332366355,1721131843705,-501.5508022,0.00021917,2]
[332366356,1721131843716,-263.36753334,0.00021917,2]
[332366357,1721131843727,-500.0,0.00021917,2]
[332366358,1721131843738,-500.0,0.00021917,2]
[332366359,1721131843748,-500.0,0.00021917,2]
[332366360,1721131843758,-500.0,0.00021917,2]
[332366361,1721131843770,-511.06386867,0.00021917,2]
[332366362,1721131843780,-509.85519281,0.00021917,2]
[332366363,1721131843790,-500.0,0.00021917,2]
[332366364,1721131843800,-500.0,0.00021917,2]
[332366365,1721131843810,-500.0,0.00021917,2]
[332366366,1721131843820,-500.0,0.00021917,2]
[332366367,1721131843829,-500.0,0.00021917,2]
[332366368,1721131843839,-500.0,0.00021917,2]
[332366369,1721131843849,-500.0,0.00021917,2]
[332366370,1721131843858,-500.0,0.00021917,2]
[332366371,1721131843868,-500.0,0.00021917,2]
[332366372,1721131843878,-505.11920375,0.00021917,2]
[332366373,1721131843887,-500.0,0.00021917,2]
[332366374,1721131843898,-459.22929702,0.00021917,2]
[332366375,1721131843911,-40.77070298,0.00021917,2]
[332366376,1721131843920,-500.0,0.00021917,2]
[332366377,1721131843930,-509.16832317,0.00021917,2]
[332366378,1721131843940,-500.0,0.00021917,2]
[332366379,1721131843950,-500.0,0.00021917,2]
[332366380,1721131843960,-500.0,0.00021917,2]
[332366381,1721131843970,-500.0,0.00021917,2]
[332366382,1721131843979,-500.0,0.00021917,2]
[332366383,1721131843988,-500.0,0.00021917,2]
[332366384,1721131843998,-500.0,0.00021917,2]
[332366385,1721131844007,-500.0,0.00021917,2]
[332366386,1721131844019,-500.0,0.00021917,2]
[332366387,1721131844031,-500.0,0.00021917,2]
[332366388,1721131844041,-296.5118951,0.00021917,2]
[332366389,1721131844052,-434.62339366,0.00021917,2]
[332366400,1721131846676,-65.37660634,0.00021917,2]
[332366401,1721131846686,-317.75670378,0.00021917,2]
[332366424,1721132167256,243.85077808,0.00016255,2]
[332366425,1721132187916,150.65349696,0.00022026,30]
[332366426,1721132188016,150.65349696,0.00021585,120]
[332366428,1721132400359,-1000.0,0.00021,21]
[332366429,1721132488292,150.6234414,0.0002216,30]
[332366430,1721132488468,150.6234414,0.00021717,120]
[332366432,1721132737151,-216.5121838,0.00019817,2]
[332366433,1721132737173,-299.58099341,0.00021095,2]
[332366434,1721132737197,-414.698844,0.00021096,2]
[332366435,1721132737218,-500.0,0.00021369,2]
[332366436,1721132737240,-763.88482052,0.00021717,2]
[332366437,1721132737263,-428.48715345,0.00021717,2]
[332366438,1721132737286,-1637.03011161,0.00021717,2]
[332366439,1721132737307,-72590.94356621,0.000219,2]
[332366440,1721132750135,788.69184776,0.00021784,30]
[332366441,1721132750906,3065.23518435,0.00021784,30]
[332366443,1721132825093,-150.0,0.000198,2]
[332366444,1721132825115,-344.24,0.00021643,2]
[332366445,1721132825137,-1327.92147593,0.00021817,2]
[332366446,1721132825158,-115312.58717407,0.000219,2]
[332366447,1721132833156,-19744.18,0.000219,2]
[332366448,1721132846084,-149488.58748533,0.000219,2]
[332366449,1721132865337,1000.0,0.00021,21]
[332366452,1721132887592,1000.0,0.00024,60]
[332366457,1721132963652,-501.45253698,0.0002,2]
[332366460,1721132963713,-164.07788119,0.0002,2]
[332366464,1721132983168,150.63846768,0.00022359,30]
[332366465,1721132983252,150.63846768,0.00021912,120]
[332366499,1721133039012,-10556.82634111,0.0002,2]
[332366501,1721133039023,-620.08965605,0.00020497,2]
[332366503,1721133039032,-1161.93129143,0.0002056,2]
[332366505,1721133039041,-4237.16242018,0.0002066,7]
[332366507,1721133039050,-232.3673533,0.00021,2]
[332366509,1721133039060,-4313.62633676,0.00021,2]
[332366511,1721133039069,-502.87212318,0.000212,2]
[332366513,1721133039078,-620.0044828,0.00021522,2]
[332366514,1721133039087,-14439.2584435,0.00021893,2]
[332366520,1721133039126,-23585.55145426,0.00021893,2]
[332366523,1721133039137,-45393.95397639,0.000219,2]
[332366526,1721133039146,-2500.0,0.000219,2]
[332366528,1721133039156,-150.112233,0.000219,3]
[332366530,1721133039166,-3000.0,0.000219,2]
[332366532,1721133039175,-154.4433292,0.000219,2]
[332366534,1721133039184,-15580.6613968,0.00021907,3]
[332366536,1721133039193,-1407.0,0.00021908,2]
[332366538,1721133039204,-150.0,0.00021908,2]
[332366540,1721133039214,-500.0,0.00021908,2]
[332366542,1721133039223,-3000.0,0.0002191,2]
[332366543,1721133039233,-1723.78093901,0.00021917,5]
[332366544,1721133039242,-2009.37455438,0.00021917,5]
[332366545,1721133039252,-205.82684542,0.00021917,2]
[332366546,1721133039261,-500.0,0.00021917,2]
[332366547,1721133039280,-500.0,0.00021917,2]
[332366548,1721133039291,-500.0,0.00021917,2]
[332366549,1721133039301,-503.24205449,0.00021917,2]
[332366550,1721133039311,-500.0,0.00021917,2]
[332366551,1721133039321,-500.0,0.00021917,2]
[332366552,1721133039331,-506.09990283,0.00021917,2]
[332366553,1721133039341,-503.03972761,0.00021917,2]
[332366554,1721133039350,-500.0,0.00021917,2]
[332366555,1721133039360,-500.0,0.00021917,2]
[332366556,1721133039369,-500.0,0.00021917,2]
[332366557,1721133039379,-500.0,0.00021917,2]
[332366558,1721133039388,-510.30864574,0.00021917,2]
[332366559,1721133039398,-598.62585194,0.00021917,2]
[332366560,1721133039408,-500.0,0.00021917,2]
[332366561,1721133039418,-500.0,0.00021917,2]
[332366562,1721133039428,-500.0,0.00021917,2]
[332366563,1721133039439,-500.0,0.00021917,2]
[332366564,1721133039449,-500.0,0.00021917,2]
[332366565,1721133039462,-500.0,0.00021917,2]
[332366566,1721133039472,-500.0,0.00021917,2]
[332366567,1721133039483,-500.6278962,0.00021917,2]
[332366568,1721133039493,-500.0,0.00021917,2]
[332366569,1721133039504,-151.0,0.00021917,2]
[332366570,1721133039513,-151.0,0.00021917,2]
[332366571,1721133039523,-500.0,0.00021917,2]
[332366572,1721133039532,-151.0,0.00021917,2]
[332366573,1721133039542,-151.0,0.00021917,2]
[332366574,1721133039552,-153.893132,0.00021917,2]
[332366575,1721133039561,-500.0,0.00021917,2]
[332366576,1721133039571,-509.47109849,0.00021917,2]
[332366577,1721133039581,-503.19196411,0.00021917,2]
[332366578,1721133039591,-500.0,0.00021917,2]
[332366579,1721133039601,-500.0,0.00021917,2]
[332366580,1721133039611,-500.0,0.00021917,2]
[332366581,1721133039621,-503.53476329,0.00021917,2]
[332366582,1721133039631,-500.0,0.00021917,2]
[332366583,1721133039642,-500.0,0.00021917,2]
[332366584,1721133039652,-500.0,0.00021917,2]
[332366585,1721133039662,-500.0,0.00021917,2]
[332366586,1721133039672,-500.0,0.00021917,2]
[332366587,1721133039682,-223.901336,0.00021917,2]
[332366588,1721133039692,-223.901336,0.00021917,2]
[332366589,1721133039702,-223.901336,0.00021917,2]
[332366590,1721133039718,-223.901336,0.00021917,2]
[332366591,1721133039730,-223.901336,0.00021917,2]
[332366592,1721133039740,-223.901336,0.00021917,2]
[332366593,1721133039750,-223.901336,0.00021917,2]
[332366594,1721133039760,-500.0,0.00021917,2]
[332366595,1721133039770,-223.901336,0.00021917,2]
[332366596,1721133039780,-223.901336,0.00021917,2]
[332366597,1721133039789,-502.14019859,0.00021917,2]
[332366598,1721133039799,-223.901336,0.00021917,2]
[332366599,1721133039809,-223.901336,0.00021917,2]
[332366600,1721133039819,-223.901336,0.00021917,2]
[332366601,1721133039830,-223.901336,0.00021917,2]
[332366602,1721133039840,-223.901336,0.00021917,2]
[332366603,1721133039851,-507.688302,0.00021917,2]
[332366604,1721133039865,-500.0,0.00021917,2]
[332366605,1721133039875,-500.0,0.00021917,2]
[332366606,1721133039885,-230.07783821,0.00021917,2]
[332366607,1721133039895,-516.98125419,0.00021917,2]
[332366611,1721133039905,-500.0,0.00021917,2]
[332366612,1721133040055,-500.0,0.00021917,2]
[332366613,1721133040065,-500.0,0.00021917,2]
[332366614,1721133040075,-500.0,0.00021917,2]
[332366615,1721133040084,-460.53308357,0.00021917,2]
[332366616,1721133040094,-500.0,0.00021917,2]
[332366617,1721133040104,-216.20344502,0.00021917,2]
[332366618,1721133040113,-500.0,0.00021917,2]
[332366619,1721133040122,-500.0,0.00021917,2]
[332366620,1721133040132,-500.0,0.00021917,2]
[332366621,1721133040142,-500.0,0.00021917,2]
[332366622,1721133040151,-501.42081379,0.00021917,2]
[332366623,1721133040162,-500.0,0.00021917,2]
[332366624,1721133040172,-500.0,0.00021917,2]
[332366625,1721133040182,-508.28451475,0.00021917,2]
[332366626,1721133040193,-520.29694719,0.00021917,2]
[332366627,1721133040203,-500.0,0.00021917,2]
[332366628,1721133040218,-500.0,0.00021917,2]
[332366629,1721133040227,-500.0,0.00021917,2]
[332366630,1721133040236,-500.0,0.00021917,2]
[332366631,1721133040247,-200.0,0.00021917,2]
[332366633,1721133040256,-500.0,0.00021917,2]
[332366635,1721133040266,-500.0,0.00021917,2]
[332366636,1721133040276,-546.86852375,0.00021917,2]
[332366638,1721133040285,-500.0,0.00021917,2]
[332366639,1721133040294,-416.2255291,0.00021917,2]
[332366640,1721133040303,-151.0,0.00021917,2]
[332366641,1721133040312,-230.339713,0.00021917,2]
[332366643,1721133040322,-500.0,0.00021917,2]
[332366644,1721133040331,-500.0,0.00021917,2]
[332366645,1721133040340,-500.0,0.00021917,2]
[332366646,1721133040350,-500.0,0.00021917,2]
[332366647,1721133040359,-525.39332137,0.00021917,2]
[332366648,1721133040367,-190.81208504,0.00021917,2]
[332366649,1721133040377,-500.0,0.00021917,2]
[332366650,1721133040386,-500.0,0.00021917,2]
[332366651,1721133040395,-500.0,0.00021917,2]
[332366652,1721133040404,-500.0,0.00021917,2]
[332366653,1721133040413,-500.0,0.00021917,2]
[332366654,1721133040422,-500.0,0.00021917,2]
[332366656,1721133040431,-500.0,0.00021917,2]
[332366657,1721133040440,-502.87594549,0.00021917,2]
[332366658,1721133040450,-500.0,0.00021917,2]
[332366659,1721133040466,-500.0,0.00021917,2]
[332366660,1721133040475,-500.0,0.00021917,2]
[332366662,1721133040484,-184.08314027,0.00021917,2]
[332366663,1721133040493,-500.0,0.00021917,2]
[332366664,1721133040502,-361.11154877,0.00021917,2]
[332366665,1721133040511,-500.0,0.00021917,2]
[332366666,1721133040520,-500.87984298,0.00021917,2]
[332366667,1721133040530,-500.0,0.00021917,2]
[332366668,1721133040538,-500.0,0.00021917,2]
[332366669,1721133040548,-500.0,0.00021917,2]
[332366670,1721133040557,-501.60019171,0.00021917,2]
[332366671,1721133040566,-500.0,0.00021917,2]
[332366672,1721133040575,-501.91521712,0.00021917,2]
[332366673,1721133040584,-501.91227958,0.00021917,2]
[332366674,1721133040594,-500.0,0.00021917,2]
[332366675,1721133040605,-500.0,0.00021917,2]
[332366676,1721133040614,-500.0,0.00021917,2]
[332366677,1721133040623,-500.0,0.00021917,2]
[332366678,1721133040632,-500.0,0.00021917,2]
[332366679,1721133040642,-500.0,0.00021917,2]
[332366680,1721133040652,-500.0,0.00021917,2]
[332366681,1721133040662,-500.0,0.00021917,2]
[332366682,1721133040671,-1500.0,0.00021917,2]
[332366683,1721133040680,-500.0,0.00021917,2]
[332366684,1721133040688,-500.0,0.00021917,2]
[332366685,1721133040698,-500.0,0.00021917,2]
[332366686,1721133040711,-500.73738812,0.00021917,2]
[332366687,1721133040721,-505.75620937,0.00021917,2]
[332366688,1721133040730,-500.0,0.00021917,2]
[332366689,1721133040740,-503.32201325,0.00021917,2]
[332366690,1721133040749,-1085.36,0.00021917,2]
[332366691,1721133040758,-500.0,0.00021917,2]
[332366692,1721133040767,-500.0,0.00021917,2]
[332366693,1721133040777,-500.0,0.00021917,2]
[332366694,1721133040787,-600.60453441,0.00021917,2]
[332366695,1721133040796,-500.0,0.00021917,2]
[332366696,1721133040805,-500.0,0.00021917,2]
[332366697,1721133040814,-509.57942774,0.00021917,2]
[332366698,1721133040824,-500.0,0.00021917,2]
[332366699,1721133040833,-500.0,0.00021917,2]
[332366700,1721133040841,-539.05099463,0.00021917,2]
[332366701,1721133040850,-500.0,0.00021917,2]
[332366702,1721133040864,-500.0,0.00021917,2]
[332366703,1721133040873,-500.0,0.00021917,2]
[332366704,1721133040882,-500.0,0.00021917,2]
[332366705,1721133040891,-500.0,0.00021917,2]
[332366706,1721133040901,-500.0,0.00021917,2]
[332366707,1721133040910,-500.0,0.00021917,2]
[332366708,1721133040919,-511.69507559,0.00021917,2]
[332366709,1721133040929,-500.0,0.00021917,2]
[332366710,1721133040939,-500.0,0.00021917,2]
[332366711,1721133040949,-500.0,0.00021917,2]
[332366712,1721133040962,-500.0,0.00021917,2]
[332366713,1721133040974,-500.0,0.00021917,2]
[332366714,1721133040984,-500.0,0.00021917,2]
[332366715,1721133040994,-500.0,0.00021917,2]
[332366716,1721133041003,-500.0,0.00021917,2]
[332366717,1721133041014,-500.0,0.00021917,2]
[332366718,1721133041023,-500.0,0.00021917,2]
[332366719,1721133041033,-500.0,0.00021917,2]
[332366720,1721133041042,-500.0,0.00021917,2]
[332366721,1721133041052,-500.0,0.00021917,2]
[332366722,1721133041061,-500.0,0.00021917,2]
[332366723,1721133041070,-515.9535972,0.00021917,2]
[332366724,1721133041079,-500.0,0.00021917,2]
[332366725,1721133041088,-500.0,0.00021917,2]
[332366726,1721133041096,-516.07735879,0.00021917,2]
[332366727,1721133041106,-500.0,0.00021917,2]
[332366728,1721133041115,-501.02106288,0.00021917,2]
[332366729,1721133041125,-151.0,0.00021917,2]
[332366730,1721133041135,-500.0,0.00021917,2]
[332366731,1721133041144,-151.0,0.00021917,2]
[332366732,1721133041153,-151.0,0.00021917,2]
[332366733,1721133041163,-151.0,0.00021917,2]
[332366734,1721133041172,-500.0,0.00021917,2]
[332366735,1721133041181,-500.0,0.00021917,2]
[332366736,1721133041190,-158.130355,0.00021917,2]
[332366737,1721133041199,-500.0,0.00021917,2]
[332366738,1721133041213,-500.0,0.00021917,2]
[332366739,1721133041222,-500.0,0.00021917,2]
[332366740,1721133041231,-501.4468765,0.00021917,2]
[332366741,1721133041241,-500.0,0.00021917,2]
[332366742,1721133041250,-500.0,0.00021917,2]
[332366743,1721133041260,-500.0,0.00021917,2]
[332366744,1721133041270,-500.0,0.00021917,2]
[332366745,1721133041281,-500.0,0.00021917,2]
[332366746,1721133041292,-1655.15,0.00021917,2]
[332366747,1721133041302,-500.0,0.00021917,2]
[332366748,1721133041313,-500.0,0.00021917,2]
[332366749,1721133041324,-500.0,0.00021917,2]
[332366750,1721133041334,-502.7724056,0.00021917,2]
[332366751,1721133041343,-500.0,0.00021917,2]
[332366752,1721133041352,-500.0,0.00021917,2]
[332366753,1721133041361,-500.0,0.00021917,2]
[332366754,1721133041370,-500.0,0.00021917,2]
[332366755,1721133041379,-368.40807096,0.00021917,2]
[332366756,1721133041388,-500.0,0.00021917,2]
[332366757,1721133041397,-500.0,0.00021917,2]
[332366758,1721133041406,-500.0,0.00021917,2]
[332366759,1721133041415,-500.0,0.00021917,2]
[332366760,1721133041425,-500.0,0.00021917,2]
[332366761,1721133041435,-500.0,0.00021917,2]
[332366762,1721133041444,-500.0,0.00021917,2]
[332366763,1721133041453,-500.0,0.00021917,2]
[332366764,1721133041466,-2096.56,0.00021917,2]
[332366765,1721133041475,-500.0,0.00021917,2]
[332366766,1721133041484,-500.0,0.00021917,2]
[332366767,1721133041493,-500.0,0.00021917,2]
[332366768,1721133041502,-500.0,0.00021917,2]
[332366769,1721133041511,-500.0,0.00021917,2]
[332366770,1721133041520,-561.34513262,0.00021917,2]
[332366771,1721133041529,-500.0,0.00021917,2]
[332366772,1721133041539,-524.36714738,0.00021917,2]
[332366773,1721133041548,-725.17,0.00021917,2]
[332366774,1721133041557,-500.0,0.00021917,2]
[332366775,1721133041566,-500.0,0.00021917,2]
[332366776,1721133041575,-500.0,0.00021917,2]
[332366777,1721133041585,-500.0,0.00021917,2]
[332366778,1721133041594,-603.00167635,0.00021917,2]
[332366779,1721133041603,-500.0,0.00021917,2]
[332366780,1721133041613,-500.0,0.00021917,2]
[332366781,1721133041623,-500.0,0.00021917,2]
[332366782,1721133041632,-500.0,0.00021917,2]
[332366783,1721133041642,-500.0,0.00021917,2]
[332366784,1721133041651,-500.0,0.00021917,2]
[332366785,1721133041660,-500.0,0.00021917,2]
[332366786,1721133041669,-500.0,0.00021917,2]
[332366787,1721133041679,-500.0,0.00021917,2]
[332366788,1721133041688,-792.0,0.00021917,2]
[332366789,1721133041697,-500.0,0.00021917,2]
[332366790,1721133041710,-503.61206608,0.00021917,2]
[332366791,1721133041719,-500.0,0.00021917,2]
[332366792,1721133041728,-500.0,0.00021917,2]
[332366793,1721133041737,-500.0,0.00021917,2]
[332366794,1721133041747,-500.0,0.00021917,2]
[332366795,1721133041757,-151.0,0.00021917,2]
[332366796,1721133041766,-5.92425288,0.00021917,2]
[332366836,1721133043542,-145.07574712,0.00021917,2]
[332366837,1721133043554,-151.0,0.00021917,2]
[332366838,1721133043564,-151.0,0.00021917,2]
[332366839,1721133043575,-500.0,0.00021917,2]
[332366840,1721133043585,-193.485996,0.00021917,2]
[332366841,1721133043594,-500.0,0.00021917,2]
[332366842,1721133043603,-500.0,0.00021917,2]
[332366843,1721133043613,-569.25974538,0.00021917,2]
[332366844,1721133043623,-685.15,0.00021917,2]
[332366845,1721133043632,-500.0,0.00021917,2]
[332366846,1721133043642,-715.07,0.00021917,2]
[332366847,1721133043652,-500.0,0.00021917,2]
[332366848,1721133043661,-500.0,0.00021917,2]
[332366849,1721133043671,-500.0,0.00021917,2]
[332366850,1721133043680,-500.0,0.00021917,2]
[332366851,1721133043690,-500.0,0.00021917,2]
[332366852,1721133043700,-500.0,0.00021917,2]
[332366853,1721133043715,-500.0,0.00021917,2]